bitfinex/quotes_SOLUSD_20251125
["timestamp","ask_amount","ask_price","bid_price","bid_amount"]
[1764070982020,2.30317495,136.81,136.78,3.94]
[1764070982218,0.71,136.81,136.78,3.94]
[1764070982632,0.71,136.81,136.78,3.22]
[1764070982932,3.01317495,136.82,136.79,0.72]
[1764070983134,2.30317495,136.82,136.79,0.72]
[1764070983333,3.01317495,136.83,136.79,0.72]
[1764070983841,0.71,136.82,136.8,7.30994152]
[1764070984935,3.01317495,136.82,136.79,7.31022209]
[1764070985138,3.01317495,136.82,136.79,8.03022209]
[1764070985319,2.30317495,136.81,136.79,8.03022209]
[1764070985938,3.01317495,136.81,136.79,7.31022209]
[1764070986437,2.30317495,136.8,136.79,7.31022209]
[1764070986633,3.01317495,136.81,136.79,7.31022209]
[1764070987529,2.30317495,136.8,136.78,69.53075559]
[1764070987732,3.01317495,136.8,136.78,68.81075559]
[1764070988037,2.30317495,136.8,136.78,62.22]
[1764070988531,3.01317495,136.8,136.78,61.5]
[1764070988917,2.30317495,136.8,136.78,62.22]
[1764070989131,3.01317495,136.8,136.78,61.5]
[1764070989341,3.01317495,136.8,136.78,69.53094589]
[1764070989521,2.30317495,136.8,136.78,69.53094589]
[1764070991637,3.01317495,136.81,136.78,69.53094589]
[1764070995334,8.80994492,136.82,136.8,7.30994152]
[1764070995539,8.80994492,136.82,136.8,8.02994152]
[1764070997215,8.80994492,136.82,136.81,0.72]
[1764070998141,8.80994492,136.82,136.8,7.30994152]
[1764070998318,8.80994492,136.82,136.81,0.72]
[1764070998517,8.80994492,136.82,136.8,7.30994152]
[1764070998718,8.80994492,136.82,136.8,8.02994152]
[1764070998929,24.56906643,136.84,136.81,0.72]
[1764070998930,17.26102557,136.84,136.81,0.72]
[1764070999126,8.80994492,136.83,136.81,0.72]
[1764071000922,11.11311987,136.83,136.81,0.72]
[1764071001550,11.82311987,136.83,136.81,0.72]
[1764071001725,11.11311987,136.83,136.81,8.0293847]
[1764071003237,11.11311987,136.83,136.81,0.72]
[1764071003931,11.11311987,136.83,136.81,8.02928834]
[1764071004132,3.02317495,136.82,136.81,7.30928834]
[1764071004334,3.02317495,136.82,136.79,18.96571261]
[1764071004335,2.30317495,136.82,136.8,11.21973512]
[1764071006153,3.02317495,136.82,136.8,3.22]
[1764071006549,2.30317495,136.82,136.8,7.99976058]
[1764071007239,16.308864,136.78,136.72,0.69]
[1764071007533,16.308864,136.78,136.67,86.5827275]
[1764071007534,18.61203895,136.73,136.67,7.3168947]
[1764071007763,2.30317495,136.7,136.68,0.69]
[1764071007934,2.30317495,136.7,136.68,3.91]
[1764071008126,2.30317495,136.7,136.68,11.22596105]
[1764071008331,2.30317495,136.7,136.68,10.53596105]
[1764071008531,2.30317495,136.7,136.68,11.22596105]
[1764071008778,2.30317495,136.7,136.69,0.69]
[1764071009656,2.30317495,136.7,136.68,10.53596105]
[1764071009852,2.30317495,136.7,136.68,11.22596105]
[1764071010175,2.30317495,136.7,136.69,0.69]
[1764071011045,2.30317495,136.7,136.69,8.00582412]
[1764071011551,2.30317495,136.71,136.69,8.00582412]
[1764071015060,2.30317495,136.71,136.69,0.69]
[1764071015947,2.30317495,136.7,136.69,0.69]
[1764071016546,2.30317495,136.7,136.68,7.31631462]
[1764071016742,2.30317495,136.7,136.68,0.69]
[1764071017763,2.30317495,136.7,136.68,8.0062884]
[1764071019642,2.30317495,136.73,136.69,0.69]
[1764071019850,3.02317495,136.73,136.69,62.19]
[1764071020333,3.02317495,136.73,136.7,0.69]
[1764071021063,0.72,136.72,136.69,62.19]
[1764071021559,3.02317495,136.72,136.69,69.50538728]
[1764071021958,2.30317495,136.71,136.69,62.19]
[1764071022939,2.30317495,136.71,136.69,69.50581754]
[1764071023357,0.72,136.72,136.69,62.19]
[1764071023358,2.30317495,136.7,136.69,62.19]
[1764071023641,2.30317495,136.7,136.69,0.69]
[1764071024667,3.60160206,136.7,136.69,0.69]
[1764071024967,3.60160206,136.71,136.69,0.69]
[1764071025350,3.60160206,136.7,136.69,0.69]
[1764071025556,16.308864,136.69,136.66,61.7]
[1764071025760,3.60160206,136.68,136.66,4.11]
[1764071027065,16.308864,136.71,136.67,4.29160206]
[1764071027253,8.80994492,136.72,136.67,8.00686978]
[1764071027447,12.41154698,136.72,136.68,0.69]
[1764071027637,13.13154698,136.72,136.68,0.69]
[1764071028265,12.41154698,136.72,136.68,0.69]
[1764071028769,13.13154698,136.72,136.68,0.69]
[1764071029269,13.13154698,136.72,136.69,7.31582412]
[1764071029764,13.13154698,136.72,136.69,8.00582412]
[1764071030976,12.41154698,136.72,136.69,8.00582412]
[1764071031175,8.80994492,136.72,136.69,8.00582412]
[1764071031472,12.41154698,136.72,136.7,0.69]
[1764071031677,13.13154698,136.72,136.69,3.91]
[1764071032358,13.13154698,136.72,136.69,11.22563697]
[1764071032953,0.14216157,136.76,136.7,0.69]
[1764071033168,3.60160206,136.74,136.7,0.69]
[1764071034355,3.60160206,136.74,136.71,7.31475385]
[1764071035046,3.60160206,136.74,136.71,7.97475385]
[1764071035247,20.61046606,136.76,136.72,0.66]
[1764071035469,4.30160206,136.76,136.72,0.66]
[1764071035859,4.30160206,136.75,136.72,0.66]
[1764071036873,4.30160206,136.75,136.73,7.3136839]
[1764071038071,3.60160206,136.75,136.73,7.3136839]
[1764071038268,8.80994492,136.73,136.66,0.2]
[1764071038567,3.60160206,136.7,136.68,0.68]
[1764071038882,3.60160206,136.69,136.68,0.68]
[1764071039174,3.60160206,136.69,136.68,7.99635937]
[1764071039678,3.60160206,136.7,136.68,7.99635937]
[1764071040253,3.60160206,136.7,136.67,10.5366785]
[1764071040769,3.60160206,136.7,136.68,0.68]
[1764071041174,9.47994492,136.71,136.66,61.7]
[1764071041175,4.27160206,136.69,136.66,61.7]
[1764071041355,3.60160206,136.68,136.66,61.7]
[1764071041877,3.60160206,136.68,136.66,62.38]
[1764071042260,3.60160206,136.68,136.66,61.7]
[1764071042466,13.08154698,136.67,136.66,0.2]
[1764071042978,3.60160206,136.68,136.66,0.88]
[1764071043156,8.80994492,136.68,136.66,0.88]
[1764071043857,8.80994492,136.68,136.66,8.1972699]
[1764071044697,16.308864,136.7,136.67,0.68]
[1764071045272,16.308864,136.7,136.68,7.31635937]
[1764071045479,8.80994492,136.71,136.68,7.31635937]
[1764071045669,8.80994492,136.71,136.69,0.68]
[1764071045868,16.308864,136.74,136.7,3.60160206]
[1764071046093,16.308864,136.74,136.69,7.50160206]
[1764071046281,8.80994492,136.75,136.71,3.60160206]
[1764071046784,8.80994492,136.75,136.72,0.68]
[1764071047299,8.80994492,136.75,136.73,7.3136839]
[1764071048820,13.08154698,136.75,136.72,7.99403664]
[1764071051464,4.27160206,136.74,136.72,7.31403664]
[1764071051669,3.60160206,136.73,136.7,10.53528895]
[1764071051869,4.27160206,136.73,136.7,10.53528895]
[1764071052489,4.27160206,136.72,136.7,7.31528895]
[1764071052661,3.60160206,136.71,136.7,7.31528895]
[1764071053274,4.27160206,136.72,136.7,7.31528895]
[1764071053462,4.27160206,136.72,136.69,7.31582412]
[1764071053667,4.27160206,136.72,136.69,7.99582412]
[1764071053890,3.60160206,136.73,136.69,7.31582412]
[1764071054193,4.27160206,136.73,136.7,0.68]
[1764071055193,4.27160206,136.73,136.69,26.28538443]
[1764071055367,4.27160206,136.73,136.69,25.60538443]
[1764071055570,4.27160206,136.73,136.7,0.68]
[1764071056266,4.27160206,136.73,136.7,7.99479695]
[1764071057102,0.42648471,136.74,136.7,7.31479695]
[1764071057394,19.91046606,136.75,136.71,3.9]
[1764071057568,20.58046606,136.75,136.71,3.9]
[1764071057773,20.58046606,136.75,136.72,0.68]
[1764071059592,20.58046606,136.75,136.72,7.99417875]
[1764071063978,8.80994492,136.77,136.73,0.71]
[1764071064308,8.80994492,136.77,136.74,3.22]
[1764071064804,8.80994492,136.77,136.74,3.93]
[1764071065310,9.51994492,136.77,136.75,7.31261425]
[1764071066903,8.80994492,136.77,136.75,8.02261425]
[1764071067902,9.51994492,136.77,136.75,7.31261425]
[1764071068601,13.12154698,136.77,136.75,7.31261425]
[1764071073093,4.31160206,136.76,136.75,7.31261425]
[1764071073294,4.31160206,136.76,136.74,10.53290237]
[1764071073495,3.60160206,136.75,136.74,7.31290237]
[1764071075808,3.60160206,136.75,136.73,8.02347704]
[1764071077503,4.31160206,136.76,136.73,8.02347704]
[1764071077703,8.80994492,136.76,136.74,0.71]
[1764071078409,12.41154698,136.76,136.74,0.71]
[1764071078710,12.41154698,136.76,136.74,8.02280394]
[1764071079104,12.41154698,136.76,136.74,7.31280394]
[1764071079298,13.12154698,136.76,136.74,7.31280394]
[1764071080313,12.41154698,136.76,136.74,7.31280394]
[1764071080889,12.41154698,136.76,136.74,0.71]
[1764071081919,8.80994492,136.76,136.74,8.0228056]
[1764071082706,8.80994492,136.76,136.75,0.71]
[1764071083190,8.80994492,136.76,136.74,7.3128056]
[1764071083191,8.80994492,136.76,136.74,8.0228056]
[1764071083515,9.51994492,136.76,136.74,8.0228056]
[1764071083691,8.80994492,136.76,136.74,8.0228056]
[1764071084507,8.80994492,136.76,136.74,7.3128056]
[1764071084712,8.80994492,136.76,136.74,8.0228056]
[1764071087220,9.51994492,136.76,136.74,8.0228056]
[1764071087421,9.51994492,136.76,136.74,7.3128056]
[1764071087720,9.51994492,136.76,136.74,8.0228056]
[1764071089012,8.80994492,136.76,136.74,8.0228056]
[1764071089222,3.22,136.77,136.75,0.71]
[1764071089523,8.80994492,136.77,136.75,0.71]
[1764071089717,9.51994492,136.77,136.74,25.5956782]
[1764071089895,9.51994492,136.77,136.74,26.3056782]
[1764071090095,11.82284168,136.77,136.74,26.3056782]
[1764071090695,11.11284168,136.77,136.75,0.71]
[1764071091124,11.11284168,136.77,136.75,8.02239029]
[1764071091625,11.82284168,136.77,136.75,7.31239029]
[1764071092528,2.30289676,136.76,136.75,7.31239029]
[1764071094017,11.82284168,136.77,136.75,7.31239029]
[1764071095126,5.8072199,136.79,136.76,0.66]
[1764071095329,9.46994492,136.78,136.75,26.25392593]
[1764071095797,8.80994492,136.78,136.76,0.66]
[1764071096002,9.46994492,136.78,136.76,0.66]
[1764071096203,8.80994492,136.78,136.75,25.59392593]
[1764071096424,8.80994492,136.78,136.76,0.66]
[1764071097606,8.80994492,136.78,136.76,7.97174888]
[1764071098021,9.51994492,136.78,136.76,7.31174888]
[1764071098856,9.51994492,136.78,136.76,0.72]
[1764071099036,8.80994492,136.78,136.76,0.72]
[1764071099407,11.82284168,136.78,136.75,18.28153564]
[1764071099606,11.82284168,136.78,136.75,19.00153564]
[1764071100109,11.82284168,136.78,136.76,0.72]
[1764071100333,3.01289676,136.77,136.74,8.03314904]
[1764071100624,3.01289676,136.77,136.74,11.25314904]
[1764071101502,3.22,136.79,136.75,0.72]
[1764071101736,2.30289676,136.78,136.75,0.72]
[1764071101919,11.11284168,136.77,136.74,29.53602164]
[1764071102235,11.82284168,136.77,136.74,29.53602164]
[1764071102612,11.82284168,136.77,136.74,25.59602164]
[1764071102815,11.82284168,136.77,136.74,26.31602164]
[1764071103114,11.82284168,136.77,136.74,25.59602164]
[1764071103332,9.51994492,136.77,136.75,8.03226753]
[1764071104522,8.80994492,136.77,136.75,8.03226753]
[1764071105625,8.80994492,136.75,136.72,7.31421884]
[1764071105936,2.30289676,136.73,136.7,25.60267476]
[1764071106123,2.30289676,136.72,136.7,8.03528895]
[1764071106326,2.30289676,136.72,136.71,0.72]
[1764071106735,3.01289676,136.72,136.7,7.31528895]
[1764071107031,3.01289676,136.71,136.66,0.2]
[1764071107231,2.30289676,136.7,136.67,0.72]
[1764071107638,2.30289676,136.7,136.67,8.0368947]
[1764071108026,2.30289676,136.7,136.68,0.72]
[1764071108224,3.01289676,136.71,136.68,0.72]
[1764071109541,3.01289676,136.71,136.69,7.31582412]
[1764071110338,11.82284168,136.7,136.69,7.31582412]
[1764071110538,11.82284168,136.7,136.68,7.31615171]
[1764071110720,3.01289676,136.69,136.67,7.31666945]
[1764071110916,2.30289676,136.68,136.67,7.31666945]
[1764071111349,3.01289676,136.69,136.67,7.31666945]
[1764071112014,11.82284168,136.68,136.66,0.2]
[1764071112216,11.11284168,136.67,136.66,0.2]
[1764071112418,11.82284168,136.67,136.66,0.2]
[1764071113519,11.11284168,136.67,136.66,0.2]
[1764071114946,11.11284168,136.67,136.66,7.51743011]
[1764071115319,9.51994492,136.67,136.66,0.2]
[1764071115826,8.80994492,136.71,136.66,13.76032687]
[1764071116030,11.25500325,136.71,136.66,13.76032687]
[1764071116235,11.11284168,136.71,136.67,0.72]
[1764071116445,8.80994492,136.71,136.67,3.02289676]
[1764071116628,11.82284168,136.71,136.67,0.72]
[1764071116825,2.30289676,136.7,136.66,25.8110054]
[1764071117020,3.01289676,136.7,136.67,0.72]
[1764071117348,2.30289676,136.7,136.67,0.72]
[1764071118031,9.51994492,136.71,136.68,7.31635937]
[1764071118032,11.11284168,136.71,136.68,7.31635937]
[1764071118534,11.11284168,136.71,136.69,0.72]
[1764071118745,11.11284168,136.71,136.68,8.03635937]
[1764071118935,11.82284168,136.71,136.68,8.03635937]
[1764071119333,11.82284168,136.71,136.68,26.32725781]
[1764071119532,8.80994492,136.72,136.69,0.72]
[1764071120043,9.51994492,136.72,136.7,7.31528895]
[1764071120451,8.80994492,136.72,136.7,7.31528895]
[1764071120631,8.80994492,136.72,136.7,8.03528895]
[1764071124452,8.80994492,136.72,136.7,8.01528895]
[1764071124857,11.11284168,136.72,136.7,8.01528895]
[1764071125239,3.02289676,136.71,136.69,7.31558355]
[1764071125658,0.72,136.7,136.69,7.31558355]
[1764071125876,3.02289676,136.7,136.69,7.31558355]
[1764071126057,2.30289676,136.7,136.69,7.31558355]
[1764071126566,3.02289676,136.71,136.69,7.31558355]
[1764071129232,0.72,136.71,136.69,7.31558355]
[1764071130361,8.80994492,136.7,136.68,72.03615027]
[1764071130536,8.80994492,136.7,136.68,68.81615027]
[1764071130736,0.72,136.69,136.67,7.31671142]
[1764071131268,9.52994492,136.7,136.67,8.01671142]
[1764071132142,2.30289676,136.69,136.67,8.01671142]
[1764071133480,2.30289676,136.69,136.67,7.31671142]
[1764071133802,3.02289676,136.69,136.67,7.31671142]
[1764071134476,2.30289676,136.69,136.67,7.31671142]
[1764071134785,2.30289676,136.69,136.67,8.01671142]
[1764071135090,9.52994492,136.7,136.67,8.01671142]
[1764071135091,8.80994492,136.7,136.68,0.7]
[1764071135279,11.11284168,136.7,136.68,0.7]
[1764071135590,11.11284168,136.7,136.69,7.31582412]
[1764071136398,11.11284168,136.7,136.67,8.01675739]
[1764071136569,2.30289676,136.69,136.68,0.7]
[1764071136952,11.11284168,136.7,136.68,0.7]
[1764071137675,8.80994492,136.7,136.69,7.31582412]
[1764071138078,8.80994492,136.7,136.69,8.01582412]
[1764071138569,8.80994492,136.7,136.69,7.31582412]
[1764071138955,11.11284168,136.7,136.69,7.31582412]
[1764071140077,11.11284168,136.7,136.68,8.01635937]
[1764071144878,8.80994492,136.7,136.68,8.01635937]
[1764071145064,11.11284168,136.7,136.68,8.01635937]
[1764071146584,12.4117599,136.7,136.68,8.01635937]
[1764071147485,3.60181498,136.69,136.68,8.01635937]
[1764071151171,12.4117599,136.7,136.68,8.01635937]
[1764071151873,3.60181498,136.69,136.68,8.01635937]
[1764071152067,4.32181498,136.69,136.66,0.2]
[1764071152267,3.60181498,136.67,136.66,7.51716284]
[1764071153271,0.72,136.68,136.66,7.51716284]
[1764071153474,3.60181498,136.67,136.66,8.17716284]
[1764071153679,3.60181498,136.68,136.66,25.81073813]
[1764071153899,28.7206239,136.7,136.67,0.66]
[1764071157501,28.7206239,136.7,136.68,7.31635937]
[1764071157992,3.60181498,136.69,136.68,7.31635937]
[1764071158192,3.60181498,136.69,136.68,8.01635937]
[1764071160995,3.60181498,136.71,136.68,8.01635937]
[1764071161197,3.60181498,136.71,136.69,0.7]
[1764071161779,8.80994492,136.71,136.69,0.7]
[1764071161997,12.4117599,136.72,136.69,0.7]
[1764071163198,12.4117599,136.72,136.7,7.31528895]
[1764071163588,13.0917599,136.72,136.7,8.01528895]
[1764071163773,3.60181498,136.71,136.7,8.01528895]
[1764071164077,4.28181498,136.71,136.7,7.31528895]
[1764071164880,3.60181498,136.71,136.7,7.31528895]
[1764071165281,3.60181498,136.71,136.69,26.30431015]
[1764071166201,12.4117599,136.72,136.7,0.7]
[1764071166377,8.80994492,136.73,136.7,65.42]
[1764071166694,4.02829969,136.74,136.7,65.42]
[1764071166695,3.60181498,136.74,136.7,65.42]
[1764071166881,3.60181498,136.77,136.71,4.30181498]
[1764071167196,8.80994492,136.76,136.73,25.59789365]
[1764071167394,3.60181498,136.77,136.74,3.22]
[1764071167703,3.60181498,136.77,136.74,3.92]
[1764071167889,3.60181498,136.75,136.73,10.5336839]
[1764071168092,3.60181498,136.74,136.73,7.3136839]
[1764071168876,3.60181498,136.75,136.73,8.0136839]
[1764071170803,3.60181498,136.74,136.73,8.0136839]
[1764071171380,3.60181498,136.75,136.73,26.29789365]
[1764071171578,12.4117599,136.76,136.74,0.7]
[1764071171780,3.60181498,136.77,136.74,3.92]
[1764071171988,12.4117599,136.78,136.74,3.92]
[1764071172202,12.4117599,136.78,136.75,0.7]
[1764071172420,3.60181498,136.78,136.75,62.2]
[1764071172781,3.60181498,136.78,136.76,0.7]
[1764071172976,3.60181498,136.78,136.76,62.2]
[1764071173192,3.60181498,136.78,136.76,65.42]
[1764071173389,3.60181498,136.78,136.77,7.31154492]
[1764071176106,3.60181498,136.78,136.77,8.01154492]
[1764071176309,3.60181498,136.79,136.77,26.29040724]
[1764071177602,13.0917599,136.78,136.76,7.31185834]
[1764071177809,3.60181498,136.77,136.76,7.31185834]
[1764071178111,4.28181498,136.77,136.76,7.31185834]
[1764071178994,8.80994492,136.76,136.72,0.7]
[1764071179204,3.60181498,136.74,136.72,0.7]
[1764071179401,3.60181498,136.75,136.73,25.59789365]
[1764071179797,0.42648471,136.77,136.74,0.7]
[1764071180108,3.60181498,136.75,136.73,25.59789365]
[1764071180316,3.60181498,136.75,136.73,26.29789365]
[1764071184210,3.60181498,136.75,136.73,87.79789365]
[1764071191799,3.60181498,136.75,136.74,7.31314904]
[1764071192726,3.60181498,136.75,136.74,8.02314904]
[1764071193232,3.60181498,136.75,136.74,7.31314904]
[1764071193543,3.60181498,136.75,136.73,79.78420975]
[1764071193544,13.0917599,136.75,136.73,7.31341999]
[1764071193748,3.60181498,136.74,136.73,7.31341999]
[1764071202912,12.4117599,136.75,136.73,8.02341999]
[1764071203131,12.4117599,136.74,136.72,68.81408612]
[1764071203321,12.83824461,136.73,136.72,61.5]
[1764071203533,8.80994492,136.72,136.69,7.31579086]
[1764071203735,8.80994492,136.68,136.66,0.2]
[1764071203916,7.24829969,136.71,136.66,0.2]
[1764071203917,3.60181498,136.67,136.66,0.2]
[1764071204117,3.60181498,136.69,136.67,0.71]
[1764071204536,3.60181498,136.7,136.67,0.71]
[1764071204928,3.60181498,136.7,136.68,7.31635937]
[1764071205747,3.60181498,136.7,136.68,8.02635937]
[1764071206420,3.60181498,136.69,136.68,8.02635937]
[1764071208549,2.30522814,136.69,136.68,8.02635937]
[1764071210238,2.30522814,136.7,136.68,8.02635937]
[1764071210855,2.30522814,136.7,136.68,7.31635937]
[1764071211031,2.30522814,136.7,136.68,8.02635937]
[1764071213347,2.30522814,136.7,136.68,11.24635937]
[1764071213547,2.30522814,136.7,136.69,7.97582412]
[1764071214342,2.30522814,136.7,136.69,7.31582412]
[1764071215359,2.99522814,136.7,136.68,72.03620463]
[1764071215654,2.30522814,136.69,136.68,72.69620463]
[1764071216552,2.30522814,136.7,136.68,72.69620463]
[1764071218556,2.30522814,136.7,136.69,0.68]
[1764071219358,8.80994492,136.71,136.69,0.68]
[1764071219562,2.30522814,136.71,136.69,0.68]
[1764071220350,24.04862006,136.74,136.69,0.68]
[1764071220351,2.30522814,136.74,136.7,3.22]
[1764071220553,0.72,136.8,136.71,41.91050249]
[1764071220866,0.72,136.8,136.73,2.30522814]
[1764071220867,2.30522814,136.78,136.73,2.30522814]
[1764071221042,2.30522814,136.77,136.74,3.22]
[1764071221245,2.30522814,136.76,136.74,3.22]
[1764071221544,2.30522814,136.77,136.75,0.68]
[1764071222282,2.30522814,136.77,136.76,7.31207955]
[1764071222564,2.30522814,136.78,136.76,7.31207955]
[1764071222774,2.30522814,136.78,136.76,7.99207955]
[1764071223266,2.30522814,136.78,136.76,7.31207955]
[1764071223463,2.30522814,136.78,136.77,0.68]
[1764071224066,2.30522814,136.78,136.76,7.31207955]
[1764071224067,3.02522814,136.78,136.76,10.53207955]
[1764071224363,2.30522814,136.77,136.76,10.53207955]
[1764071224561,2.30522814,136.77,136.76,11.21207955]
[1764071227471,2.30522814,136.77,136.76,7.31207955]
[1764071227971,1.00432314,136.79,136.76,7.99207955]
[1764071228171,2.30522814,136.78,136.76,7.99207955]
[1764071228342,2.30522814,136.78,136.77,0.68]
[1764071228541,8.80994492,136.8,136.77,0.68]
[1764071228746,0.1,136.84,136.78,3.22]
[1764071229060,11.21517306,136.84,136.78,5.52522814]
[1764071229268,11.21517306,136.84,136.79,0.68]
[1764071229472,11.21517306,136.84,136.8,3.22]
[1764071229651,11.21517306,136.84,136.81,7.3094072]
[1764071229846,2.30522814,136.83,136.81,7.9894072]
[1764071232780,2.40522814,136.84,136.82,0.68]
[1764071234482,2.40522814,136.84,136.83,7.30833881]
[1764071235275,2.40522814,136.84,136.83,7.98833881]
[1764071236280,2.40522814,136.84,136.83,7.30833881]
[1764071237564,2.40522814,136.84,136.82,0.68]
[1764071237770,3.02522814,136.83,136.79,21.49540369]
[1764071237973,3.02522814,136.83,136.8,0.68]
[1764071237974,8.80994492,136.83,136.8,0.68]
[1764071238174,11.11517306,136.83,136.8,0.68]
[1764071238375,2.30522814,136.82,136.81,7.3094072]
[1764071238778,2.30522814,136.82,136.8,0.68]
[1764071238982,8.80994492,136.8,136.76,7.31184053]
[1764071239193,2.30522814,136.79,136.76,11.21184053]
[1764071239488,2.30522814,136.79,136.77,0.68]
[1764071240387,11.11517306,136.79,136.78,7.31101038]
[1764071240693,8.80994492,136.79,136.78,7.31101038]
[1764071240892,11.11517306,136.79,136.78,7.99101038]
[1764071241264,11.11517306,136.79,136.78,7.31101038]
[1764071242077,11.83517306,136.79,136.78,7.31101038]
[1764071242482,11.11517306,136.79,136.77,7.31154492]
[1764071242693,2.30522814,136.78,136.77,7.31154492]
[1764071242887,8.80994492,136.77,136.76,7.31187449]
[1764071243086,11.78517306,136.77,136.72,3.93]
[1764071243391,2.30522814,136.75,136.72,3.93]
[1764071243895,2.30522814,136.75,136.73,0.71]
[1764071244285,2.30522814,136.75,136.74,7.31314904]
[1764071244493,11.11517306,136.75,136.74,7.31314904]
[1764071246376,8.80994492,136.75,136.74,7.31314904]
[1764071246596,11.11517306,136.75,136.74,7.31314904]
[1764071246787,11.11517306,136.75,136.73,8.0236839]
[1764071246983,8.80994492,136.75,136.73,8.0236839]
[1764071248813,11.11517306,136.75,136.73,8.0236839]
[1764071249905,11.11517306,136.75,136.73,11.2436839]
[1764071250690,8.80994492,136.75,136.74,0.71]
[1764071251423,9.47994492,136.75,136.7,96.09698736]
[1764071251710,2.30522814,136.71,136.69,0.71]
[1764071251887,2.30522814,136.71,136.69,10.5356837]
[1764071252086,2.30522814,136.7,136.69,10.5356837]
[1764071252683,2.30522814,136.7,136.68,7.31615783]
[1764071252895,2.30522814,136.69,136.68,10.53615783]
[1764071253304,2.30522814,136.69,136.68,11.24615783]
[1764071253508,2.30522814,136.7,136.68,11.24615783]
[1764071253686,2.30522814,136.7,136.68,10.53615783]
[1764071253888,2.30522814,136.7,136.69,0.71]
[1764071255016,2.30522814,136.7,136.68,10.53615783]
[1764071255182,2.30522814,136.69,136.68,11.24615783]
[1764071255586,2.30522814,136.69,136.66,0.91]
[1764071255810,11.11517306,136.69,136.67,0.71]
[1764071256695,8.80994492,136.69,136.67,8.0268688]
[1764071257291,8.80994492,136.69,136.67,7.3168688]
[1764071257503,8.80994492,136.69,136.68,0.71]
[1764071258316,1.09648471,136.72,136.68,8.02635937]
[1764071258527,11.11517306,136.71,136.68,11.24635937]
[1764071259090,11.78517306,136.71,136.68,11.24635937]
[1764071260188,11.78517306,136.71,136.68,29.53725781]
[1764071260420,11.11517306,136.71,136.69,0.71]
[1764071260603,8.80994492,136.74,136.7,3.22]
[1764071260804,2.30522814,136.73,136.7,3.22]
[1764071261005,2.30522814,136.73,136.71,0.71]
[1764071261916,11.11517306,136.74,136.72,7.31421884]
[1764071262304,11.11517306,136.74,136.72,8.02421884]
[1764071262707,2.30522814,136.73,136.72,0.71]
[1764071264125,2.30522814,136.73,136.71,7.31473018]
[1764071264427,2.30522814,136.73,136.71,69.52473018]
[1764071264594,2.30522814,136.73,136.72,0.71]
[1764071265301,2.30522814,136.73,136.71,68.81473018]
[1764071265508,2.30522814,136.73,136.71,69.52473018]
[1764071267224,2.30522814,136.73,136.71,68.81473018]
[1764071267432,11.11517306,136.73,136.72,0.71]
[1764071268145,11.11517306,136.73,136.71,68.81473018]
[1764071268445,11.11517306,136.73,136.71,72.74473018]
[1764071269763,11.11517306,136.73,136.72,8.02421884]
[1764071270228,8.80994492,136.73,136.72,8.02421884]
[1764071271428,12.40962475,136.73,136.72,8.02421884]
[1764071271842,13.07962475,136.73,136.71,72.0345545]
[1764071272038,13.07962475,136.72,136.71,61.5]
[1764071273060,12.40962475,136.72,136.71,61.5]
[1764071275073,13.06962475,136.72,136.71,61.5]
[1764071275672,12.40962475,136.72,136.71,61.5]
[1764071276064,13.06962475,136.72,136.71,61.5]
[1764071276260,8.80994492,136.71,136.7,7.31520403]
[1764071276466,12.40962475,136.71,136.7,7.31520403]
[1764071277188,8.80994492,136.71,136.7,8.00520403]
[1764071277389,8.80994492,136.72,136.7,11.22520403]
[1764071277558,12.40962475,136.72,136.7,11.22520403]
[1764071277757,12.40962475,136.72,136.71,0.69]
[1764071278060,8.80994492,136.73,136.71,0.69]
[1764071279872,8.80994492,136.73,136.72,7.31421884]
[1764071280583,8.80994492,136.74,136.72,11.22421884]
[1764071280879,3.59967983,136.74,136.72,29.50976594]
[1764071281377,8.80994492,136.75,136.73,0.69]
[1764071281789,8.80994492,136.77,136.74,3.22]
[1764071281976,8.80994492,136.77,136.75,7.31261425]
[1764071282287,8.80994492,136.77,136.75,26.28414989]
[1764071282475,3.59967983,136.8,136.76,3.91]
[1764071282797,8.80994492,136.79,136.77,0.69]
[1764071284078,3.59967983,136.79,136.78,7.31101038]
[1764071284592,12.40962475,136.8,136.78,7.31101038]
[1764071286265,3.59967983,136.79,136.78,7.31101038]
[1764071286964,12.40962475,136.8,136.78,7.31101038]
[1764071287164,3.59967983,136.79,136.78,7.31101038]
[1764071288372,4.27967983,136.79,136.78,7.31101038]
[1764071288576,3.59967983,136.79,136.78,7.31101038]
[1764071292800,12.40962475,136.8,136.78,7.31101038]
[1764071293272,13.08962475,136.8,136.78,7.31101038]